fUSD/lending_fUSD_20240119
["ID","MTS","AMOUNT","RATE_DAILY","PERIOD"]
[312133695,1705666267730,-500.0,0.00023269,2]
[312133696,1705666267744,-500.0,0.00023269,2]
[312133697,1705666267764,-500.0,0.00023269,2]
[312133698,1705666267778,-500.0,0.00023269,2]
[312133699,1705666267791,-530.48,0.00023269,2]
[312133700,1705666267803,-500.0,0.00023269,7]
[312133701,1705666267815,-500.0,0.00023269,2]
[312133702,1705666267827,-500.0,0.00023269,2]
[312133703,1705666267838,-500.0,0.00023269,2]
[312133704,1705666267850,-256.86056279,0.00023269,2]
[312133705,1705666267862,-500.0,0.00023269,2]
[312133706,1705666267873,-500.0,0.00023269,2]
[312133707,1705666267886,-596.7,0.00023269,2]
[312133708,1705666267897,-500.0,0.00023269,2]
[312133709,1705666267909,-869.05,0.00023269,2]
[312133710,1705666267921,-651.28,0.00023269,2]
[312133711,1705666267933,-500.0,0.00023269,2]
[312133712,1705666267945,-813.98,0.00023269,2]
[312133713,1705666267957,-502.21277129,0.00023269,2]
[312133714,1705666267969,-858.03,0.00023269,2]
[312133715,1705666267982,-1255.83,0.00023269,2]
[312133716,1705666267993,-500.0,0.00023269,2]
[312133717,1705666268005,-508.60679664,0.00023269,2]
[312133718,1705666268016,-500.0,0.00023269,2]
[312133719,1705666268029,-500.0,0.00023269,2]
[312133720,1705666268040,-500.0,0.00023269,2]
[312133721,1705666268052,-514.22645331,0.00023269,2]
[312133722,1705666268063,-500.0,0.00023269,2]
[312133723,1705666268075,-540.48054744,0.00023269,2]
[312133724,1705666268087,-500.0,0.00023269,2]
[312133725,1705666268098,-1127.81,0.00023269,2]
[312133726,1705666268110,-737.1,0.00023269,2]
[312133727,1705666268121,-500.0,0.00023269,2]
[312133728,1705666268133,-933.45,0.00023269,2]
[312133729,1705666268145,-500.0,0.00023269,2]
[312133730,1705666268157,-1285.45,0.00023269,2]
[312133731,1705666268169,-799.51,0.00023269,2]
[312133732,1705666268181,-500.0,0.00023269,2]
[312133733,1705666268193,-583.98203398,0.00023269,2]
[312133734,1705666268204,-500.0,0.00023269,2]
[312133735,1705666268216,-500.0,0.00023269,2]
[312133736,1705666268228,-512.63607219,0.00023269,2]
[312133737,1705666268239,-1604.6,0.00023269,2]
[312133738,1705666268250,-500.0,0.00023269,2]
[312133739,1705666268262,-505.57388685,0.00023269,2]
[312133740,1705666268274,-565.02,0.00023269,2]
[312133741,1705666268286,-500.0,0.00023269,2]
[312133742,1705666268298,-500.0,0.00023269,2]
[312133743,1705666268309,-500.0,0.00023269,2]
[312133744,1705666268321,-501.52988507,0.00023269,2]
[312133745,1705666268333,-500.0,0.00023269,2]
[312133746,1705666268345,-500.0,0.00023269,2]
[312133747,1705666268357,-500.0,0.00023269,2]
[312133748,1705666268368,-520.46,0.00023269,2]
[312133749,1705666268380,-500.0,0.00023269,2]
[312133750,1705666268392,-500.0,0.00023269,2]
[312133751,1705666268404,-489.62623223,0.00023269,2]
[312133752,1705666268416,-500.0,0.00023269,2]
[312133753,1705666268427,-500.0,0.00023269,2]
[312133754,1705666268439,-728.86,0.00023269,2]
[312133755,1705666268451,-240.32898947,0.00023269,2]
[312133756,1705666268464,-334.25808795,0.00023269,2]
[312133757,1705666268476,-1264.15,0.00023269,2]
[312133758,1705666268488,-500.0,0.00023269,2]
[312133759,1705666268499,-500.0,0.00023269,2]
[312133760,1705666268511,-649.55,0.00023269,2]
[312133761,1705666268523,-500.0,0.00023269,2]
[312133762,1705666268535,-511.23,0.00023269,2]
[312133763,1705666268546,-500.0,0.00023269,2]
[312133764,1705666268557,-977.19,0.00023269,2]
[312133765,1705666268569,-508.43560658,0.00023269,2]
[312133766,1705666268581,-500.0,0.00023269,2]
[312133767,1705666268593,-1528.44,0.00023269,2]
[312133768,1705666268605,-500.0,0.00023269,2]
[312133769,1705666268617,-502.23045465,0.00023269,2]
[312133770,1705666268837,-500.0,0.00023269,2]
[312133771,1705666268849,-500.0,0.00023269,2]
[312133772,1705666268861,-500.0,0.00023269,2]
[312133773,1705666268874,-1679.82,0.00023269,2]
[312133774,1705666268885,-500.0,0.00023269,2]
[312133775,1705666268898,-500.0,0.00023269,2]
[312133776,1705666268910,-549.61428278,0.00023269,2]
[312133777,1705666268922,-627.3,0.00023269,2]
[312133778,1705666268934,-500.0,0.00023269,2]
[312133779,1705666268946,-500.0,0.00023269,2]
[312133780,1705666268957,-500.0,0.00023269,2]
[312133781,1705666268969,-500.0,0.00023269,2]
[312133782,1705666268982,-500.0,0.00023269,2]
[312133783,1705666268993,-1835.52,0.00023269,2]
[312133784,1705666269006,-9652.13,0.00023269,2]
[312133785,1705666269017,-515.26,0.00023269,2]
[312133786,1705666269028,-500.0,0.00023269,2]
[312133787,1705666269039,-500.0,0.00023269,2]
[312133788,1705666269051,-500.0,0.00023269,2]
[312133789,1705666269062,-500.0,0.00023269,2]
[312133790,1705666269074,-473.10124755,0.00023269,2]
[312133791,1705666269086,-500.0,0.00023269,2]
[312133792,1705666269100,-1150.41,0.00023269,2]
[312133793,1705666269113,-509.39357335,0.00023269,2]
[312133794,1705666269125,-509.34350151,0.00023269,2]
[312133795,1705666269138,-4685.36,0.00023269,2]
[312133796,1705666269149,-500.0,0.00023269,2]
[312133797,1705666269161,-500.0,0.00023269,2]
[312133798,1705666269174,-500.0,0.00023269,2]
[312133799,1705666269187,-512.56374876,0.00023269,2]
[312133800,1705666269198,-500.0,0.00023269,2]
[312133801,1705666269210,-1244.76,0.00023269,2]
[312133802,1705666269221,-2001.17,0.00023269,2]
[312133803,1705666269232,-836.26,0.00023269,2]
[312133804,1705666269244,-643.71,0.00023269,2]
[312133805,1705666269257,-500.0,0.00023269,2]
[312133806,1705666269269,-500.0,0.00023269,2]
[312133807,1705666269282,-500.0,0.00023269,2]
[312133808,1705666269295,-500.0,0.00023269,2]
[312133809,1705666269306,-500.0,0.00023269,2]
[312133810,1705666269319,-500.0,0.00023269,2]
[312133811,1705666269331,-500.0,0.00023269,2]
[312133812,1705666269342,-500.0,0.00023269,2]
[312133813,1705666269353,-500.0,0.00023269,2]
[312133814,1705666269365,-673.35,0.00023269,2]
[312133815,1705666269378,-500.0,0.00023269,2]
[312133816,1705666269396,-500.0,0.00023269,2]
[312133817,1705666269422,-504.87,0.00023269,2]
[312133818,1705666269444,-335.74364263,0.00023269,2]
[312133819,1705666269467,-771.28,0.00023269,2]
[312133820,1705666269491,-500.0,0.00023269,2]
[312133821,1705666269511,-500.0,0.00023269,2]
[312133822,1705666269532,-1538.26,0.00023269,2]
[312133823,1705666269555,-5075.2,0.00023269,2]
[312133824,1705666269576,-500.0,0.00023269,2]
[312133825,1705666269597,-1267.24,0.00023269,2]
[312133826,1705666269620,-847.45,0.00023269,2]
[312133827,1705666269643,-1264.86,0.00023269,2]
[312133828,1705666269668,-508.11189622,0.00023269,2]
[312133829,1705666269685,-500.0,0.00023269,2]
[312133830,1705666269707,-1609.06,0.00023269,2]
[312133831,1705666269729,-393.27829157,0.00023269,2]
[312133832,1705666269748,-500.0,0.00023269,2]
[312133833,1705666269767,-509.18497978,0.00023269,2]
[312133834,1705666269787,-500.0,0.00023269,2]
[312133835,1705666269805,-500.0,0.00023269,2]
[312133836,1705666269823,-500.0,0.00023269,2]
[312133837,1705666269843,-990.0,0.00023269,2]
[312133838,1705666269861,-500.0,0.00023269,2]
[312133839,1705666269882,-500.0,0.00023269,2]
[312133840,1705666269900,-500.0,0.00023269,2]
[312133841,1705666269919,-3252.2,0.00023269,2]
[312133842,1705666269939,-500.0,0.00023269,2]
[312133843,1705666269959,-500.0,0.00023269,2]
[312133844,1705666269978,-500.0,0.00023269,2]
[312133845,1705666269997,-500.0,0.00023269,2]
[312133846,1705666270016,-500.0,0.00023269,2]
[312133847,1705666270033,-193.31875197,0.00023269,2]
[312133848,1705666270052,-3626.74,0.00023269,2]
[312133849,1705666270069,-500.0,0.00023269,2]
[312133850,1705666270089,-500.0,0.00023269,2]
[312133851,1705666270108,-500.0,0.00023269,2]
[312133852,1705666270126,-770.99,0.00023269,2]
[312133853,1705666270157,-758.67,0.00023269,2]
[312133854,1705666270174,-500.0,0.00023269,2]
[312133855,1705666270193,-500.0,0.00023269,2]
[312133856,1705666270212,-500.0,0.00023269,2]
[312133857,1705666270230,-7664.11,0.00023269,2]
[312133858,1705666270249,-500.0,0.00023269,2]
[312133859,1705666270268,-11303.55,0.00023269,2]
[312133860,1705666270288,-902.16,0.00023269,2]
[312133861,1705666270306,-500.0,0.00023269,2]
[312133862,1705666270325,-500.0,0.00023269,2]
[312133863,1705666270346,-504.56740848,0.00023269,2]
[312133864,1705666270365,-425.32417603,0.00023269,2]
[312133865,1705666270385,-402.51373951,0.00023269,2]
[312133866,1705666270403,-6250.14,0.00023269,2]
[312133867,1705666270422,-500.0,0.00023269,2]
[312133868,1705666270443,-500.0,0.00023269,2]
[312133869,1705666270462,-500.0,0.00023269,2]
[312133870,1705666270481,-170.81249112,0.00023269,2]
[312133871,1705666270500,-500.0,0.00023269,2]
[312133872,1705666270519,-500.0,0.00023269,2]
[312133873,1705666270538,-664.96,0.00023269,2]
[312133874,1705666270557,-714.13,0.00023269,2]
[312133875,1705666270577,-462.13,0.00023269,2]
[312133876,1705666270598,-868.24,0.00023269,2]
[312133877,1705666270617,-500.0,0.00023269,2]
[312133878,1705666270637,-2960.31,0.00023269,2]
[312133879,1705666270657,-500.0,0.00023269,2]
[312133880,1705666270675,-9834.44,0.00023269,2]
[312133881,1705666270693,-500.0,0.00023269,2]
[312133882,1705666270715,-500.0,0.00023269,2]
[312133883,1705666270737,-500.0,0.00023269,2]
[312133884,1705666270756,-2320.43,0.00023269,2]
[312133885,1705666270775,-602.92664823,0.00023269,2]
[312133886,1705666270795,-500.0,0.00023269,2]
[312133887,1705666270815,-500.0,0.00023269,2]
[312133888,1705666270834,-500.0,0.00023269,2]
[312133889,1705666270853,-5976.03,0.00023269,2]
[312133890,1705666270872,-500.0,0.00023269,2]
[312133891,1705666270891,-500.0,0.00023269,2]
[312133892,1705666270911,-1820.94,0.00023269,2]
[312133893,1705666270930,-823.03,0.00023269,2]
[312133894,1705666270950,-500.0,0.00023269,2]
[312133895,1705666270970,-500.0,0.00023269,2]
[312133896,1705666270989,-500.0,0.00023269,2]
[312133897,1705666271008,-500.0,0.00023269,2]
[312133898,1705666271027,-500.0,0.00023269,2]
[312133899,1705666271046,-500.0,0.00023269,2]
[312133900,1705666271065,-505.81,0.00023269,2]
[312133901,1705666271082,-1021.23,0.00023269,2]
[312133902,1705666271103,-645.27,0.00023269,2]
[312133903,1705666271122,-796.93,0.00023269,2]
[312133904,1705666271142,-500.0,0.00023269,2]
[312133905,1705666271160,-500.0,0.00023269,2]
[312133906,1705666271179,-500.0,0.00023269,2]
[312133907,1705666271197,-339.93279425,0.00023269,2]
[312133908,1705666271217,-500.0,0.00023269,2]
[312133909,1705666271235,-500.0,0.00023269,2]
[312133910,1705666271254,-1032.88,0.00023269,2]
[312133911,1705666271273,-500.0,0.00023269,2]
[312133912,1705666271293,-500.0,0.00023269,2]
[312133913,1705666271312,-500.0,0.00023269,2]
[312133914,1705666271332,-500.0,0.00023269,2]
[312133915,1705666271351,-503.65284769,0.00023269,2]
[312133916,1705666271370,-560.11,0.00023269,2]
[312133917,1705666271390,-1063.08,0.00023269,2]
[312133918,1705666271409,-978.62,0.00023269,2]
[312133919,1705666271427,-500.0,0.00023269,2]
[312133920,1705666271446,-3550.01,0.00023269,2]
[312133921,1705666271465,-519.41776884,0.00023269,2]
[312133922,1705666271484,-500.0,0.00023269,2]
[312133923,1705666271504,-500.0,0.00023269,2]
[312133924,1705666271522,-804.89,0.00023269,2]
[312133925,1705666271541,-500.0,0.00023269,2]
[312133926,1705666271559,-500.0,0.00023269,2]
[312133927,1705666271577,-500.0,0.00023269,2]
[312133928,1705666271596,-500.0,0.00023269,2]
[312133929,1705666271614,-500.0,0.00023269,2]
[312133930,1705666271633,-964.83,0.00023269,2]
[312133931,1705666271651,-1091.51,0.00023269,2]
[312133932,1705666271669,-500.0,0.00023269,2]
[312133933,1705666271686,-758.43,0.00023269,2]
[312133934,1705666271704,-500.0,0.00023269,2]
[312133935,1705666271723,-11177.61,0.00023269,2]
[312133936,1705666271741,-705.91,0.00023269,2]
[312133937,1705666271760,-500.0,0.00023269,2]
[312133938,1705666271779,-817.94,0.00023269,2]
[312133939,1705666271797,-500.0,0.00023269,2]
[312133940,1705666271810,-500.0,0.00023269,2]
[312133941,1705666271822,-500.0,0.00023269,2]
[312133942,1705666271835,-500.0,0.00023269,2]
[312133943,1705666271846,-1738.46,0.00023269,2]
[312133944,1705666272145,-526.46257333,0.00023269,2]
[312133945,1705666272266,-500.0,0.00023269,2]
[312133946,1705666272287,-500.0,0.00023269,2]
[312133947,1705666272300,-500.0,0.00023269,2]
[312133948,1705666272311,-500.0,0.00023269,2]
[312133949,1705666272323,-500.0,0.00023269,2]
[312133950,1705666272334,-609.36,0.00023269,2]
[312133951,1705666272345,-500.0,0.00023269,2]
[312133952,1705666272356,-500.0,0.00023269,2]
[312133953,1705666272368,-1056.96,0.00023269,2]
[312133954,1705666272380,-806.41,0.00023269,2]
[312133955,1705666272392,-500.0,0.00023269,2]
[312133956,1705666272403,-500.0,0.00023269,2]
[312133957,1705666272415,-7058.53,0.00023269,2]
[312133958,1705666272427,-500.0,0.00023269,2]
[312133959,1705666272438,-500.0,0.00023269,2]
[312133960,1705666272449,-500.0,0.00023269,2]
[312133961,1705666272460,-500.0,0.00023269,2]
[312133962,1705666272472,-500.0,0.00023269,2]
[312133963,1705666272483,-500.0,0.00023269,2]
[312133964,1705666272495,-500.0,0.00023269,2]
[312133965,1705666272506,-500.0,0.00023269,2]
[312133966,1705666272518,-500.0,0.00023269,2]
[312133967,1705666272529,-500.0,0.00023269,2]
[312133968,1705666272541,-500.0,0.00023269,2]
[312133969,1705666272553,-500.0,0.00023269,2]
[312133970,1705666272565,-500.0,0.00023269,2]
[312133971,1705666272577,-500.0,0.00023269,2]
[312133972,1705666272588,-500.0,0.00023269,2]
[312133973,1705666272599,-729.56,0.00023269,2]
[312133974,1705666272610,-500.0,0.00023269,2]
[312133975,1705666272622,-500.0,0.00023269,2]
[312133976,1705666272634,-500.0,0.00023269,2]
[312133977,1705666272646,-3169.29,0.00023269,2]
[312133978,1705666272657,-1141.43,0.00023269,2]
[312133979,1705666272669,-500.0,0.00023269,2]
[312133980,1705666272681,-500.0,0.00023269,2]
[312133981,1705666272693,-2249.61,0.00023269,2]
[312133982,1705666272704,-517.80584707,0.00023269,2]
[312133983,1705666272717,-500.0,0.00023269,2]
[312133984,1705666272732,-1700.24,0.00023269,2]
[312133985,1705666272744,-500.0,0.00023269,2]
[312133986,1705666272755,-500.0,0.00023269,2]
[312133987,1705666272767,-500.0,0.00023269,2]
[312133988,1705666272778,-500.0,0.00023269,2]
[312133989,1705666272790,-579.44,0.00023269,2]
[312133990,1705666272801,-517.99466503,0.00023269,2]
[312133991,1705666272814,-500.0,0.00023269,2]
[312133992,1705666272826,-500.0,0.00023269,2]
[312133993,1705666272837,-2381.28,0.00023269,2]
[312133994,1705666272849,-500.0,0.00023269,2]
[312133995,1705666272861,-510.35076836,0.00023269,2]
[312133996,1705666272872,-1446.94,0.00023269,2]
[312133997,1705666272884,-500.0,0.00023269,2]
[312133998,1705666272895,-500.0,0.00023269,2]
[312133999,1705666272906,-500.0,0.00023269,2]
[312134000,1705666272918,-4056.5,0.00023269,2]
[312134001,1705666272930,-500.0,0.00023269,2]
[312134002,1705666272943,-500.0,0.00023269,2]
[312134003,1705666272955,-500.0,0.00023269,2]
[312134004,1705666272967,-500.0,0.00023269,2]
[312134005,1705666272979,-500.0,0.00023269,2]
[312134006,1705666272990,-500.0,0.00023269,2]
[312134007,1705666273001,-2985.9,0.00023269,2]
[312134008,1705666273013,-696.64,0.00023269,2]
[312134009,1705666273025,-500.0,0.00023269,2]
[312134010,1705666273036,-500.0,0.00023269,2]
[312134011,1705666273048,-500.0,0.00023269,2]
[312134012,1705666273059,-510.22800096,0.00023269,2]
[312134013,1705666273071,-4455.73,0.00023269,2]
[312134014,1705666273082,-500.0,0.00023269,2]
[312134015,1705666273094,-573.48931268,0.00023269,2]
[312134016,1705666273105,-994.17,0.00023269,2]
[312134017,1705666273116,-698.84,0.00023269,2]
[312134018,1705666273127,-500.0,0.00023269,2]
[312134019,1705666273139,-500.0,0.00023269,2]
[312134020,1705666273151,-500.0,0.00023269,2]
[312134021,1705666273162,-1513.75,0.00023269,2]
[312134022,1705666273173,-2003.87,0.00023269,2]
[312134023,1705666273185,-630.80894561,0.00023269,2]
[312134024,1705666273196,-500.0,0.00023269,2]
[312134025,1705666273209,-748.63,0.00023269,2]
[312134026,1705666273221,-500.0,0.00023269,2]
[312134027,1705666273232,-902.53,0.0002327,2]
[312134028,1705666273245,-703.38,0.0002327,2]
[312134029,1705666273257,-979.41,0.0002327,2]
[312134030,1705666273270,-631.03,0.0002327,2]
[312134031,1705666273281,-500.0,0.0002327,2]
[312134032,1705666273292,-529.79,0.0002327,2]
[312134033,1705666273303,-507.27,0.0002327,2]
[312134034,1705666273314,-594.0,0.0002327,2]
[312134035,1705666273327,-604.23,0.0002327,2]
[312134036,1705666273339,-500.0,0.0002327,2]
[312134037,1705666273350,-1297.18,0.0002327,2]
[312134038,1705666273361,-2265.29,0.0002327,2]
[312134039,1705666273374,-562.89,0.0002327,2]
[312134040,1705666273385,-500.0,0.0002327,2]
[312134041,1705666273396,-500.0,0.0002327,2]
[312134042,1705666273411,-500.0,0.0002327,2]
[312134043,1705666273422,-990.94,0.0002327,2]
[312134044,1705666273434,-614.26,0.0002327,2]
[312134045,1705666273445,-735.83,0.0002327,2]
[312134046,1705666273456,-856.19,0.0002327,2]
[312134047,1705666273468,-1419.84,0.0002327,2]
[312134048,1705666273479,-679.32,0.0002327,2]
[312134049,1705666273491,-680.33,0.0002327,2]
[312134050,1705666273504,-614.57,0.0002327,2]
[312134051,1705666273515,-1063.63,0.0002327,2]
[312134052,1705666273527,-1592.94,0.0002327,2]
[312134053,1705666273539,-452.74365384,0.0002327,2]
[312134054,1705666273551,-500.0,0.0002327,2]
[312134055,1705666273563,-727.17,0.0002327,2]
[312134056,1705666273767,-903.46,0.0002327,2]
[312134057,1705666273780,-500.0,0.0002327,2]
[312134058,1705666273792,-500.0,0.0002327,2]
[312134059,1705666273803,-500.0,0.0002327,2]
[312134060,1705666273814,-1089.66,0.0002327,2]
[312134061,1705666273826,-617.46,0.0002327,2]
[312134062,1705666273838,-1111.8,0.0002327,2]
[312134063,1705666273851,-500.0,0.0002327,2]
[312134064,1705666273863,-1453.62,0.0002327,2]
[312134065,1705666273875,-637.4,0.0002327,2]
[312134066,1705666273888,-500.0,0.0002327,2]
[312134067,1705666273900,-1203.6,0.0002327,2]
[312134068,1705666273911,-1735.78,0.0002327,2]
[312134069,1705666273922,-500.0,0.0002327,2]
[312134070,1705666273933,-1641.44,0.0002327,2]
[312134071,1705666273946,-500.0,0.0002327,2]
[312134072,1705666273958,-522.53,0.0002327,2]
[312134073,1705666273970,-1160.79,0.0002327,2]
[312134074,1705666273981,-1647.35,0.0002327,2]
[312134075,1705666273992,-500.0,0.0002327,2]
[312134076,1705666274003,-837.65,0.0002327,2]
[312134077,1705666274015,-500.0,0.0002327,2]
[312134078,1705666274027,-1818.93,0.0002327,2]
[312134079,1705666274038,-1042.11,0.0002327,2]
[312134080,1705666274049,-2027.65,0.0002327,2]
[312134081,1705666274060,-500.0,0.0002327,2]
[312134082,1705666274071,-500.0,0.0002327,2]
[312134083,1705666274082,-981.43,0.0002327,2]
[312134084,1705666274093,-500.0,0.0002327,2]
[312134085,1705666274104,-1018.32,0.0002327,2]
[312134086,1705666274116,-3340.96,0.0002327,2]
[312134087,1705666274128,-981.57,0.0002327,2]
[312134088,1705666274139,-6001.65,0.0002327,2]
[312134089,1705666274149,-924.24,0.0002327,2]
[312134090,1705666274160,-500.0,0.0002327,2]
[312134091,1705666274172,-1152.74,0.0002327,2]
[312134092,1705666274183,-500.0,0.0002327,2]
[312134093,1705666274194,-1251.53,0.0002327,2]
[312134094,1705666274205,-500.0,0.0002327,2]
[312134095,1705666274217,-1651.82,0.0002327,2]
[312134096,1705666274228,-525.15090611,0.0002327,2]
[312134097,1705666274241,-502.82,0.0002327,2]
[312134098,1705666274251,-609.46,0.0002327,2]
[312134099,1705666274262,-1979.16,0.0002327,2]
[312134100,1705666274274,-500.0,0.0002327,2]
[312134101,1705666274285,-500.0,0.0002327,2]
[312134102,1705666274296,-1430.36,0.0002327,2]
[312134103,1705666274307,-542.04,0.0002327,2]
[312134104,1705666274318,-9723.53,0.0002327,2]
[312134105,1705666274329,-4403.92,0.0002327,2]
[312134106,1705666274340,-982.89,0.0002327,2]
[312134107,1705666274352,-1318.74,0.0002327,2]
[312134108,1705666274363,-646.54,0.0002327,2]
[312134109,1705666274375,-4083.32,0.0002327,2]
[312134110,1705666274387,-1199.37,0.0002327,2]
[312134111,1705666274398,-716.72,0.0002327,2]
[312134112,1705666274409,-875.53,0.0002327,2]
[312134113,1705666274420,-17230.42,0.0002327,2]
[312134114,1705666274432,-500.0,0.0002327,2]
[312134115,1705666274443,-753.81,0.0002327,2]
[312134116,1705666274454,-836.21,0.0002327,2]
[312134117,1705666274466,-3033.73,0.0002327,2]
[312134118,1705666274477,-500.0,0.0002327,2]
[312134119,1705666274488,-4579.41,0.0002327,2]
[312134120,1705666274499,-500.0,0.0002327,2]
[312134121,1705666274519,-811.94,0.0002327,2]
[312134122,1705666274531,-6926.76,0.0002327,2]
[312134123,1705666274542,-500.0,0.0002327,2]
[312134124,1705666274554,-1707.03,0.0002327,2]
[312134125,1705666274566,-1650.31,0.0002327,2]
[312134126,1705666274577,-5046.73,0.0002327,2]
[312134127,1705666274589,-2778.35,0.0002327,2]
[312134128,1705666274599,-1008.17,0.0002327,2]
[312134129,1705666274689,-500.0,0.0002327,2]
[312134130,1705666274701,-5761.46,0.0002327,2]
[312134131,1705666274712,-830.39,0.0002327,2]
[312134132,1705666274723,-500.0,0.0002327,2]
[312134133,1705666274735,-1035.37,0.0002327,2]
[312134134,1705666274749,-1166.82,0.0002327,2]
[312134135,1705666274760,-520.25,0.0002327,2]
[312134136,1705666274771,-11508.39,0.0002327,2]
[312134137,1705666274784,-730.77,0.0002327,2]
[312134138,1705666274796,-1529.43,0.0002327,2]
[312134139,1705666274806,-602.34,0.0002327,2]
[312134140,1705666274817,-2801.61,0.0002327,2]
[312134141,1705666274828,-596.08,0.0002327,2]
[312134142,1705666274840,-847.54,0.0002327,2]
[312134143,1705666274851,-500.0,0.0002327,2]
[312134144,1705666274862,-1217.77,0.0002327,2]
[312134145,1705666274873,-1307.02,0.0002327,2]
[312134146,1705666274884,-1964.39,0.0002327,2]
[312134147,1705666274897,-726.13,0.0002327,2]
[312134148,1705666274908,-2317.69,0.0002327,2]
[312134149,1705666274919,-2438.45,0.0002327,2]
[312134150,1705666274931,-1132.89,0.0002327,2]
[312134151,1705666274942,-500.0,0.0002327,2]
[312134152,1705666274954,-2244.99,0.0002327,2]
[312134153,1705666274966,-2276.25,0.0002327,2]
[312134154,1705666274977,-500.0,0.0002327,2]
[312134155,1705666274989,-2345.08,0.0002327,2]
[312134156,1705666275001,-150.0,0.0002327,2]
[312134157,1705666275013,-1779.06,0.0002327,2]
[312134158,1705666275024,-1247.58,0.0002327,2]
[312134159,1705666275036,-150.0,0.0002327,2]
[312134160,1705666275049,-1265.86,0.0002327,2]
[312134161,1705666275059,-4824.73,0.0002327,2]
[312134162,1705666275071,-1351.04,0.0002327,2]
[312134163,1705666275082,-151.0,0.0002327,7]
[312134164,1705666275093,-151.0,0.0002327,7]
[312134165,1705666275105,-500.0,0.00023271,2]
[312134166,1705666275116,-564.91,0.00023271,2]
[312134167,1705666275128,-500.0,0.00023271,2]
[312134168,1705666275139,-502.65629047,0.00023271,2]
[312134169,1705666275151,-512.08664867,0.00023271,2]
[312134170,1705666275162,-500.0,0.00023271,2]
[312134171,1705666275173,-515.15976859,0.00023271,2]
[312134172,1705666275184,-502.41,0.00023271,2]
[312134173,1705666275196,-568.67,0.00023271,2]
[312134174,1705666275208,-500.0,0.00023271,2]
[312134175,1705666275219,-500.0,0.00023271,2]
[312134176,1705666275231,-507.35991604,0.00023271,2]
[312134177,1705666275243,-500.0,0.00023271,2]
[312134178,1705666275254,-500.0,0.00023271,2]
[312134179,1705666275266,-500.0,0.00023271,2]
[312134180,1705666275277,-222.89195014,0.00023271,2]
[312134181,1705666275288,-500.0,0.00023271,2]
[312134182,1705666275301,-500.0,0.00023271,2]
[312134183,1705666275313,-500.0,0.00023271,2]
[312134184,1705666275323,-500.0,0.00023271,2]
[312134185,1705666275334,-500.0,0.00023271,2]
[312134186,1705666275346,-579.96,0.00023271,2]
[312134187,1705666275357,-500.0,0.00023271,2]
[312134188,1705666275368,-514.75,0.00023271,2]
[312134189,1705666275380,-476.98927107,0.00023271,2]
[312134190,1705666275390,-842.5,0.00023271,2]
[312134191,1705666275402,-507.91783626,0.00023271,2]
[312134192,1705666275414,-501.04568876,0.00023271,2]
[312134193,1705666275426,-206.31525143,0.00023271,2]
[312134194,1705666275437,-500.0,0.00023271,2]